Workbook

Sheet Лист1
A1: дата | B1: номер | C1: н | E1: дата | F1: номер | G1: н | H1: объем | K1: дата | L1: номер | M1: н | N1: объем | O1: =IFERROR(-LOOKUP(2,1/($L$1:L1048576=L1),$N$1:N1048576)+N1,0) -> 0
A2: 2015-01-01 | B2: tt344 | C2: н | D2: 6 | E2: 2017-04-23 | F2: tt344 | G2: д | H2: 546 | K2: 2013-04-24 | L2: tt345 | M2: д | N2: 455 | O2: =IFERROR(-LOOKUP(2,1/($L$1:L1=L2),$N$1:N1)+N2,0) -> 0
A3: 2015-01-02 | B3: tt345 | C3: н | D3: 6 | E3: 2013-04-24 | F3: tt345 | G3: д | H3: 455 | K3: 2015-01-01 | L3: tt344 | M3: н | N3: 6 | O3: =IFERROR(-LOOKUP(2,1/($L$1:L2=L3),$N$1:N2)+N3,0) -> 0
A4: 2015-01-03 | B4: tt346 | C4: н | D4: 6 | E4: 2017-04-25 | F4: tt346 | G4: д | H4: 364 | K4: 2015-01-02 | L4: tt345 | M4: н | N4: 6 | O4: =IFERROR(-LOOKUP(2,1/($L$1:L3=L4),$N$1:N3)+N4,0) -> -449
A5: 2015-01-04 | B5: tt347 | C5: н | D5: 6 | E5: 2017-04-26 | F5: tt347 | G5: д | H5: 273 | K5: 2015-01-03 | L5: tt346 | M5: н | N5: 6 | O5: =IFERROR(-LOOKUP(2,1/($L$1:L4=L5),$N$1:N4)+N5,0) -> 0
A6: 2015-01-05 | B6: tt348 | C6: н | D6: 6 | E6: 2017-04-27 | F6: tt348 | G6: д | H6: 274 | K6: 2015-01-04 | L6: tt347 | M6: н | N6: 6 | O6: =IFERROR(-LOOKUP(2,1/($L$1:L5=L6),$N$1:N5)+N6,0) -> 0
A7: 2015-01-06 | B7: tt349 | C7: н | D7: 555 | E7: 2017-04-28 | F7: tt349 | G7: д | H7: 275 | K7: 2015-01-05 | L7: tt348 | M7: н | N7: 6 | O7: =IFERROR(-LOOKUP(2,1/($L$1:L6=L7),$N$1:N6)+N7,0) -> 0
A8: 2015-01-07 | B8: tt350 | C8: н | D8: 555 | E8: 2017-04-29 | F8: tt350 | G8: д | H8: 276 | K8: 2015-01-06 | L8: tt349 | M8: н | N8: 555 | O8: =IFERROR(-LOOKUP(2,1/($L$1:L7=L8),$N$1:N7)+N8,0) -> 0
A9: 2015-01-08 | B9: tt351 | C9: н | D9: 555 | E9: 2017-04-30 | F9: tt351 | G9: д | H9: 277 | K9: 2015-01-07 | L9: tt350 | M9: н | N9: 555 | O9: =IFERROR(-LOOKUP(2,1/($L$1:L8=L9),$N$1:N8)+N9,0) -> 0
A10: 2015-01-09 | B10: tt352 | C10: н | D10: 555 | E10: 2017-05-01 | F10: tt352 | G10: д | H10: 278 | K10: 2015-01-08 | L10: tt351 | M10: н | N10: 555 | O10: =IFERROR(-LOOKUP(2,1/($L$1:L9=L10),$N$1:N9)+N10,0) -> 0
A11: 2015-01-10 | B11: tt353 | C11: н | D11: 555 | E11: 2017-05-02 | F11: tt353 | G11: д | H11: 279 | K11: 2015-01-09 | L11: tt352 | M11: н | N11: 555 | O11: =IFERROR(-LOOKUP(2,1/($L$1:L10=L11),$N$1:N10)+N11,0) -> 0 | V11: результат изменения от последнего значения
A12: 2015-01-11 | B12: tt354 | C12: н | D12: 555 | E12: 2017-05-03 | F12: tt354 | G12: д | H12: 280 | K12: 2015-01-10 | L12: tt353 | M12: н | N12: 555 | O12: =IFERROR(-LOOKUP(2,1/($L$1:L11=L12),$N$1:N11)+N12,0) -> 0 | R12: 2015-01-11 | S12: tt354 | T12: н | U12: 555 | V12: 0
A13: 2015-01-12 | B13: tt355 | C13: н | E13: 2017-05-04 | F13: tt355 | G13: д | H13: 281 | K13: 2015-01-11 | L13: tt354 | M13: н | N13: 555 | O13: =IFERROR(-LOOKUP(2,1/($L$1:L12=L13),$N$1:N12)+N13,0) -> 0 | R13: 2017-04-23 | S13: tt354 | T13: д | U13: 546 | V13: =U12-U13 -> 9
A14: 2015-01-13 | B14: tt356 | C14: н | E14: 2017-05-05 | F14: tt356 | G14: д | H14: 282 | K14: 2015-01-12 | L14: tt355 | M14: н | O14: =IFERROR(-LOOKUP(2,1/($L$1:L13=L14),$N$1:N13)+N14,0) -> 0 | R14: 2017-05-24 | S14: tt354 | T14: д | U14: 455 | V14: =U13-U14 -> 91
A15: 2015-01-14 | B15: tt357 | C15: н | E15: 2017-05-06 | F15: tt357 | G15: д | H15: 283 | K15: 2015-01-13 | L15: tt356 | M15: н | O15: =IFERROR(-LOOKUP(2,1/($L$1:L14=L15),$N$1:N14)+N15,0) -> 0
A16: 2015-01-15 | B16: tt358 | C16: н | E16: 2017-05-07 | F16: tt347 | G16: д | H16: -728 | K16: 2015-01-14 | L16: tt357 | M16: н | O16: =IFERROR(-LOOKUP(2,1/($L$1:L15=L16),$N$1:N15)+N16,0) -> 0
A17: 2015-01-16 | B17: tt359 | C17: н | E17: 2017-05-08 | F17: tt348 | G17: д | H17: -819 | K17: 2015-01-15 | L17: tt358 | M17: н | O17: =IFERROR(-LOOKUP(2,1/($L$1:L16=L17),$N$1:N16)+N17,0) -> 0
A18: 2015-01-17 | B18: tt360 | C18: н | E18: 2017-05-09 | F18: tt349 | G18: д | H18: -910 | K18: 2015-01-16 | L18: tt359 | M18: н | O18: =IFERROR(-LOOKUP(2,1/($L$1:L17=L18),$N$1:N17)+N18,0) -> 0
A19: 2015-01-18 | B19: tt361 | C19: н | E19: 2017-05-10 | F19: tt350 | G19: д | K19: 2015-01-17 | L19: tt360 | M19: н | O19: =IFERROR(-LOOKUP(2,1/($L$1:L18=L19),$N$1:N18)+N19,0) -> 0
A20: 2015-01-19 | B20: tt362 | C20: н | E20: 2017-05-11 | F20: tt351 | G20: д | K20: 2015-01-18 | L20: tt361 | M20: н | O20: =IFERROR(-LOOKUP(2,1/($L$1:L19=L20),$N$1:N19)+N20,0) -> 0
A21: 2015-01-20 | B21: tt363 | C21: н | E21: 2017-05-12 | F21: tt352 | G21: д | K21: 2015-01-19 | L21: tt362 | M21: н | O21: =IFERROR(-LOOKUP(2,1/($L$1:L20=L21),$N$1:N20)+N21,0) -> 0
A22: 2015-01-21 | B22: tt364 | C22: н | E22: 2017-05-13 | F22: tt353 | G22: д | K22: 2015-01-20 | L22: tt363 | M22: н | O22: =IFERROR(-LOOKUP(2,1/($L$1:L21=L22),$N$1:N21)+N22,0) -> 0
A23: 2015-01-22 | B23: tt365 | C23: н | E23: 2017-05-14 | F23: tt354 | G23: д | K23: 2015-01-21 | L23: tt364 | M23: н | O23: =IFERROR(-LOOKUP(2,1/($L$1:L22=L23),$N$1:N22)+N23,0) -> 0
A24: 2015-01-23 | B24: tt366 | C24: н | E24: 2017-05-15 | F24: tt355 | G24: д | K24: 2015-01-22 | L24: tt365 | M24: н | O24: =IFERROR(-LOOKUP(2,1/($L$1:L23=L24),$N$1:N23)+N24,0) -> 0
A25: 2015-01-24 | B25: tt367 | C25: н | E25: 2017-05-16 | F25: tt356 | G25: д | K25: 2015-01-23 | L25: tt366 | M25: н | O25: =IFERROR(-LOOKUP(2,1/($L$1:L24=L25),$N$1:N24)+N25,0) -> 0
A26: 2015-01-25 | B26: tt368 | C26: н | E26: 2017-05-17 | F26: tt357 | G26: д | K26: 2015-01-24 | L26: tt367 | M26: н | O26: =IFERROR(-LOOKUP(2,1/($L$1:L25=L26),$N$1:N25)+N26,0) -> 0
A27: 2015-01-26 | B27: tt369 | C27: н | E27: 2017-05-18 | F27: tt358 | G27: д | K27: 2015-01-25 | L27: tt368 | M27: н | O27: =IFERROR(-LOOKUP(2,1/($L$1:L26=L27),$N$1:N26)+N27,0) -> 0
A28: 2015-01-27 | B28: tt370 | C28: н | E28: 2017-05-19 | F28: tt359 | G28: д | K28: 2015-01-26 | L28: tt369 | M28: н | O28: =IFERROR(-LOOKUP(2,1/($L$1:L27=L28),$N$1:N27)+N28,0) -> 0
A29: 2015-01-28 | B29: tt371 | C29: н | K29: 2015-01-27 | L29: tt370 | M29: н | O29: =IFERROR(-LOOKUP(2,1/($L$1:L28=L29),$N$1:N28)+N29,0) -> 0
A30: 2015-01-29 | B30: tt372 | C30: н | K30: 2015-01-28 | L30: tt371 | M30: н | O30: =IFERROR(-LOOKUP(2,1/($L$1:L29=L30),$N$1:N29)+N30,0) -> 0
A31: 2015-01-30 | B31: tt373 | C31: н | K31: 2015-01-29 | L31: tt372 | M31: н | O31: =IFERROR(-LOOKUP(2,1/($L$1:L30=L31),$N$1:N30)+N31,0) -> 0
A32: 2015-01-31 | B32: tt374 | C32: н | K32: 2015-01-30 | L32: tt373 | M32: н | O32: =IFERROR(-LOOKUP(2,1/($L$1:L31=L32),$N$1:N31)+N32,0) -> 0
A33: 2015-02-01 | B33: tt375 | C33: н | K33: 2015-01-31 | L33: tt374 | M33: н | O33: =IFERROR(-LOOKUP(2,1/($L$1:L32=L33),$N$1:N32)+N33,0) -> 0
A34: 2015-02-02 | B34: tt376 | C34: н | K34: 2015-02-01 | L34: tt375 | M34: н | O34: =IFERROR(-LOOKUP(2,1/($L$1:L33=L34),$N$1:N33)+N34,0) -> 0
A35: 2015-02-03 | B35: tt377 | C35: н | K35: 2015-02-02 | L35: tt376 | M35: н | O35: =IFERROR(-LOOKUP(2,1/($L$1:L34=L35),$N$1:N34)+N35,0) -> 0
A36: 2015-02-04 | B36: tt378 | C36: н | K36: 2015-02-03 | L36: tt377 | M36: н | O36: =IFERROR(-LOOKUP(2,1/($L$1:L35=L36),$N$1:N35)+N36,0) -> 0
A37: 2015-02-05 | B37: tt379 | C37: н | K37: 2015-02-04 | L37: tt378 | M37: н | O37: =IFERROR(-LOOKUP(2,1/($L$1:L36=L37),$N$1:N36)+N37,0) -> 0
A38: 2015-02-06 | B38: tt380 | C38: н | K38: 2015-02-05 | L38: tt379 | M38: н | O38: =IFERROR(-LOOKUP(2,1/($L$1:L37=L38),$N$1:N37)+N38,0) -> 0
A39: 2015-02-07 | B39: tt381 | C39: н | K39: 2015-02-06 | L39: tt380 | M39: н | O39: =IFERROR(-LOOKUP(2,1/($L$1:L38=L39),$N$1:N38)+N39,0) -> 0
A40: 2015-02-08 | B40: tt382 | C40: н | K40: 2015-02-07 | L40: tt381 | M40: н | O40: =IFERROR(-LOOKUP(2,1/($L$1:L39=L40),$N$1:N39)+N40,0) -> 0
A41: 2015-02-09 | B41: tt383 | C41: н | K41: 2015-02-08 | L41: tt382 | M41: н | O41: =IFERROR(-LOOKUP(2,1/($L$1:L40=L41),$N$1:N40)+N41,0) -> 0
A42: 2015-02-10 | B42: tt384 | C42: н | K42: 2015-02-09 | L42: tt383 | M42: н | O42: =IFERROR(-LOOKUP(2,1/($L$1:L41=L42),$N$1:N41)+N42,0) -> 0
A43: 2015-02-11 | B43: tt385 | C43: н | K43: 2015-02-10 | L43: tt384 | M43: н | O43: =IFERROR(-LOOKUP(2,1/($L$1:L42=L43),$N$1:N42)+N43,0) -> 0
A44: 2015-02-12 | B44: tt386 | C44: н | K44: 2015-02-11 | L44: tt385 | M44: н | O44: =IFERROR(-LOOKUP(2,1/($L$1:L43=L44),$N$1:N43)+N44,0) -> 0
A45: 2015-02-13 | B45: tt387 | C45: н | K45: 2015-02-12 | L45: tt386 | M45: н | O45: =IFERROR(-LOOKUP(2,1/($L$1:L44=L45),$N$1:N44)+N45,0) -> 0
A46: 2015-02-14 | B46: tt388 | C46: н | K46: 2015-02-13 | L46: tt387 | M46: н | O46: =IFERROR(-LOOKUP(2,1/($L$1:L45=L46),$N$1:N45)+N46,0) -> 0
A47: 2015-02-15 | B47: tt389 | C47: н | K47: 2015-02-14 | L47: tt388 | M47: н | O47: =IFERROR(-LOOKUP(2,1/($L$1:L46=L47),$N$1:N46)+N47,0) -> 0
A48: 2015-02-16 | B48: tt390 | C48: н | K48: 2015-02-15 | L48: tt389 | M48: н | O48: =IFERROR(-LOOKUP(2,1/($L$1:L47=L48),$N$1:N47)+N48,0) -> 0
A49: 2015-02-17 | B49: tt391 | C49: н | K49: 2015-02-16 | L49: tt390 | M49: н | O49: =IFERROR(-LOOKUP(2,1/($L$1:L48=L49),$N$1:N48)+N49,0) -> 0
A50: 2015-02-18 | B50: tt392 | C50: н | K50: 2015-02-17 | L50: tt391 | M50: н | O50: =IFERROR(-LOOKUP(2,1/($L$1:L49=L50),$N$1:N49)+N50,0) -> 0
A51: 2015-02-19 | B51: tt393 | C51: н | K51: 2015-02-18 | L51: tt392 | M51: н | O51: =IFERROR(-LOOKUP(2,1/($L$1:L50=L51),$N$1:N50)+N51,0) -> 0
A52: 2015-02-20 | B52: tt394 | C52: н | K52: 2015-02-19 | L52: tt393 | M52: н | O52: =IFERROR(-LOOKUP(2,1/($L$1:L51=L52),$N$1:N51)+N52,0) -> 0
A53: 2015-02-21 | B53: tt395 | C53: н | K53: 2015-02-20 | L53: tt394 | M53: н | O53: =IFERROR(-LOOKUP(2,1/($L$1:L52=L53),$N$1:N52)+N53,0) -> 0
A54: 2015-02-22 | B54: tt396 | C54: н | K54: 2015-02-21 | L54: tt395 | M54: н | O54: =IFERROR(-LOOKUP(2,1/($L$1:L53=L54),$N$1:N53)+N54,0) -> 0
A55: 2015-02-23 | B55: tt397 | C55: н | K55: 2015-02-22 | L55: tt396 | M55: н | O55: =IFERROR(-LOOKUP(2,1/($L$1:L54=L55),$N$1:N54)+N55,0) -> 0
A56: 2015-02-24 | B56: tt398 | C56: н | K56: 2015-02-23 | L56: tt397 | M56: н | O56: =IFERROR(-LOOKUP(2,1/($L$1:L55=L56),$N$1:N55)+N56,0) -> 0
A57: 2015-02-25 | B57: tt399 | C57: н | K57: 2015-02-24 | L57: tt398 | M57: н | O57: =IFERROR(-LOOKUP(2,1/($L$1:L56=L57),$N$1:N56)+N57,0) -> 0
A58: 2015-02-26 | B58: tt400 | C58: н | K58: 2015-02-25 | L58: tt399 | M58: н | O58: =IFERROR(-LOOKUP(2,1/($L$1:L57=L58),$N$1:N57)+N58,0) -> 0
A59: 2015-02-27 | B59: tt401 | C59: н | K59: 2015-02-26 | L59: tt400 | M59: н | O59: =IFERROR(-LOOKUP(2,1/($L$1:L58=L59),$N$1:N58)+N59,0) -> 0
A60: 2015-02-28 | B60: tt402 | C60: н | K60: 2015-02-27 | L60: tt401 | M60: н | O60: =IFERROR(-LOOKUP(2,1/($L$1:L59=L60),$N$1:N59)+N60,0) -> 0
A61: 2015-03-01 | B61: tt403 | C61: н | K61: 2015-02-28 | L61: tt402 | M61: н | O61: =IFERROR(-LOOKUP(2,1/($L$1:L60=L61),$N$1:N60)+N61,0) -> 0
A62: 2015-03-02 | B62: tt404 | C62: н | K62: 2015-03-01 | L62: tt403 | M62: н | O62: =IFERROR(-LOOKUP(2,1/($L$1:L61=L62),$N$1:N61)+N62,0) -> 0
A63: 2015-03-03 | B63: tt405 | C63: н | K63: 2015-03-02 | L63: tt404 | M63: н | O63: =IFERROR(-LOOKUP(2,1/($L$1:L62=L63),$N$1:N62)+N63,0) -> 0
A64: 2015-03-04 | B64: tt406 | C64: н | K64: 2015-03-03 | L64: tt405 | M64: н | O64: =IFERROR(-LOOKUP(2,1/($L$1:L63=L64),$N$1:N63)+N64,0) -> 0
A65: 2015-03-05 | B65: tt407 | C65: н | K65: 2015-03-04 | L65: tt406 | M65: н | O65: =IFERROR(-LOOKUP(2,1/($L$1:L64=L65),$N$1:N64)+N65,0) -> 0
A66: 2015-03-06 | B66: tt408 | C66: н | K66: 2015-03-05 | L66: tt407 | M66: н | O66: =IFERROR(-LOOKUP(2,1/($L$1:L65=L66),$N$1:N65)+N66,0) -> 0
A67: 2015-03-07 | B67: tt409 | C67: н | K67: 2015-03-06 | L67: tt408 | M67: н | O67: =IFERROR(-LOOKUP(2,1/($L$1:L66=L67),$N$1:N66)+N67,0) -> 0
A68: 2015-03-08 | B68: tt410 | C68: н | K68: 2015-03-07 | L68: tt409 | M68: н | O68: =IFERROR(-LOOKUP(2,1/($L$1:L67=L68),$N$1:N67)+N68,0) -> 0
A69: 2015-03-09 | B69: tt411 | C69: н | K69: 2015-03-08 | L69: tt410 | M69: н | O69: =IFERROR(-LOOKUP(2,1/($L$1:L68=L69),$N$1:N68)+N69,0) -> 0
A70: 2015-03-10 | B70: tt412 | C70: н | K70: 2015-03-09 | L70: tt411 | M70: н | O70: =IFERROR(-LOOKUP(2,1/($L$1:L69=L70),$N$1:N69)+N70,0) -> 0
A71: 2015-03-11 | B71: tt413 | C71: н | K71: 2015-03-10 | L71: tt412 | M71: н | O71: =IFERROR(-LOOKUP(2,1/($L$1:L70=L71),$N$1:N70)+N71,0) -> 0
A72: 2015-03-12 | B72: tt414 | C72: н | K72: 2015-03-11 | L72: tt413 | M72: н | O72: =IFERROR(-LOOKUP(2,1/($L$1:L71=L72),$N$1:N71)+N72,0) -> 0
A73: 2015-03-13 | B73: tt415 | C73: н | K73: 2015-03-12 | L73: tt414 | M73: н | O73: =IFERROR(-LOOKUP(2,1/($L$1:L72=L73),$N$1:N72)+N73,0) -> 0
A74: 2015-03-14 | B74: tt416 | C74: н | K74: 2015-03-13 | L74: tt415 | M74: н | O74: =IFERROR(-LOOKUP(2,1/($L$1:L73=L74),$N$1:N73)+N74,0) -> 0
A75: 2015-03-15 | B75: tt417 | C75: н | K75: 2015-03-14 | L75: tt416 | M75: н | O75: =IFERROR(-LOOKUP(2,1/($L$1:L74=L75),$N$1:N74)+N75,0) -> 0
K76: 2015-03-15 | L76: tt417 | M76: н | O76: =IFERROR(-LOOKUP(2,1/($L$1:L75=L76),$N$1:N75)+N76,0) -> 0
K77: 2017-04-23 | L77: tt344 | M77: д | N77: 546 | O77: =IFERROR(-LOOKUP(2,1/($L$1:L76=L77),$N$1:N76)+N77,0) -> 540
K78: 2017-04-25 | L78: tt346 | M78: д | N78: 364 | O78: =IFERROR(-LOOKUP(2,1/($L$1:L77=L78),$N$1:N77)+N78,0) -> 358
K79: 2017-04-26 | L79: tt347 | M79: д | N79: 273 | O79: =IFERROR(-LOOKUP(2,1/($L$1:L78=L79),$N$1:N78)+N79,0) -> 267
K80: 2017-04-27 | L80: tt348 | M80: д | N80: 274 | O80: =IFERROR(-LOOKUP(2,1/($L$1:L79=L80),$N$1:N79)+N80,0) -> 268
K81: 2017-04-28 | L81: tt349 | M81: д | N81: 275 | O81: =IFERROR(-LOOKUP(2,1/($L$1:L80=L81),$N$1:N80)+N81,0) -> -280
K82: 2017-04-29 | L82: tt350 | M82: д | N82: 276 | O82: =IFERROR(-LOOKUP(2,1/($L$1:L81=L82),$N$1:N81)+N82,0) -> -279
K83: 2017-04-30 | L83: tt351 | M83: д | N83: 277 | O83: =IFERROR(-LOOKUP(2,1/($L$1:L82=L83),$N$1:N82)+N83,0) -> -278
K84: 2017-05-01 | L84: tt352 | M84: д | N84: 278 | O84: =IFERROR(-LOOKUP(2,1/($L$1:L83=L84),$N$1:N83)+N84,0) -> -277
K85: 2017-05-02 | L85: tt353 | M85: д | N85: 279 | O85: =IFERROR(-LOOKUP(2,1/($L$1:L84=L85),$N$1:N84)+N85,0) -> -276
K86: 2017-05-03 | L86: tt354 | M86: д | N86: 280 | O86: =IFERROR(-LOOKUP(2,1/($L$1:L85=L86),$N$1:N85)+N86,0) -> -275
K87: 2017-05-04 | L87: tt355 | M87: д | N87: 281 | O87: =IFERROR(-LOOKUP(2,1/($L$1:L86=L87),$N$1:N86)+N87,0) -> 281
K88: 2017-05-05 | L88: tt356 | M88: д | N88: 282 | O88: =IFERROR(-LOOKUP(2,1/($L$1:L87=L88),$N$1:N87)+N88,0) -> 282
K89: 2017-05-06 | L89: tt357 | M89: д | N89: 283 | O89: =IFERROR(-LOOKUP(2,1/($L$1:L88=L89),$N$1:N88)+N89,0) -> 283
K90: 2017-05-07 | L90: tt347 | M90: д | N90: -728 | O90: =IFERROR(-LOOKUP(2,1/($L$1:L89=L90),$N$1:N89)+N90,0) -> -1001
K91: 2017-05-08 | L91: tt348 | M91: д | N91: -819 | O91: =IFERROR(-LOOKUP(2,1/($L$1:L90=L91),$N$1:N90)+N91,0) -> -1093
K92: 2017-05-09 | L92: tt349 | M92: д | N92: -910 | O92: =IFERROR(-LOOKUP(2,1/($L$1:L91=L92),$N$1:N91)+N92,0) -> -1185
K93: 2017-05-10 | L93: tt350 | M93: д | O93: =IFERROR(-LOOKUP(2,1/($L$1:L92=L93),$N$1:N92)+N93,0) -> -276
K94: 2017-05-11 | L94: tt351 | M94: д | O94: =IFERROR(-LOOKUP(2,1/($L$1:L93=L94),$N$1:N93)+N94,0) -> -277
K95: 2017-05-12 | L95: tt352 | M95: д | O95: =IFERROR(-LOOKUP(2,1/($L$1:L94=L95),$N$1:N94)+N95,0) -> -278
K96: 2017-05-13 | L96: tt353 | M96: д | O96: =IFERROR(-LOOKUP(2,1/($L$1:L95=L96),$N$1:N95)+N96,0) -> -279
K97: 2017-05-14 | L97: tt354 | M97: д | O97: =IFERROR(-LOOKUP(2,1/($L$1:L96=L97),$N$1:N96)+N97,0) -> -280
K98: 2017-05-15 | L98: tt355 | M98: д | O98: =IFERROR(-LOOKUP(2,1/($L$1:L97=L98),$N$1:N97)+N98,0) -> -281
K99: 2017-05-16 | L99: tt356 | M99: д | O99: =IFERROR(-LOOKUP(2,1/($L$1:L98=L99),$N$1:N98)+N99,0) -> -282
K100: 2017-05-17 | L100: tt357 | M100: д | O100: =IFERROR(-LOOKUP(2,1/($L$1:L99=L100),$N$1:N99)+N100,0) -> -283
K101: 2017-05-18 | L101: tt358 | M101: д | O101: =IFERROR(-LOOKUP(2,1/($L$1:L100=L101),$N$1:N100)+N101,0) -> 0
K102: 2017-05-19 | L102: tt359 | M102: д | O102: =IFERROR(-LOOKUP(2,1/($L$1:L101=L102),$N$1:N101)+N102,0) -> 0

Sheet Лист2
A1: дата | B1: номер | C1: н | D1: объем | F1: другие данные1 | G1: другие данные2 | H1: другие данные3 | I1: другие данные4 | J1: другие данные5 | K1: другие данные6 | L1: другие данные7
A2: 2017-04-23 | B2: tt344 | C2: д | D2: 546 | F2: 4656 | G2: 454 | H2: -3748 | I2: -7950 | J2: -12152 | K2: -16354 | L2: -20556
A3: 2013-04-24 | B3: tt345 | C3: д | D3: 455 | F3: 4656 | G3: 454 | H3: -3748 | I3: -7950 | J3: -12152 | K3: -16354 | L3: -20556
A4: 2017-04-25 | B4: tt346 | C4: д | D4: 364 | F4: 4656 | G4: 454 | H4: -3748 | I4: -7950 | J4: -12152 | K4: -16354 | L4: -20556
A5: 2017-04-26 | B5: tt347 | C5: д | D5: 273 | F5: 4656 | G5: 454 | H5: -3748 | I5: -7950 | J5: -12152 | K5: -16354 | L5: -20556
A6: 2017-04-27 | B6: tt348 | C6: д | D6: 182 | F6: 4656 | G6: 454 | H6: -3748 | I6: -7950 | J6: -12152 | K6: -16354 | L6: -20556
A7: 2017-04-28 | B7: tt349 | C7: д | D7: 91 | F7: 4656 | G7: 454 | H7: -3748 | I7: -7950 | J7: -12152 | K7: -16354 | L7: -20556
A8: 2017-04-29 | B8: tt350 | C8: д | D8: 0 | F8: 4656 | G8: 454 | H8: -3748 | I8: -7950 | J8: -12152 | K8: -16354 | L8: -20556
A9: 2017-04-30 | B9: tt351 | C9: д | D9: -91 | F9: 4656 | G9: 454 | H9: -3748 | I9: -7950 | J9: -12152 | K9: -16354 | L9: -20556
A10: 2017-05-01 | B10: tt352 | C10: д | D10: -182 | F10: 4656 | G10: 454 | H10: -3748 | I10: -7950 | J10: -12152 | K10: -16354 | L10: -20556
A11: 2017-05-02 | B11: tt353 | C11: д | D11: -273 | F11: 4656 | G11: 454 | H11: -3748 | I11: -7950 | J11: -12152 | K11: -16354 | L11: -20556
A12: 2017-05-03 | B12: tt354 | C12: д | D12: -364 | F12: 4656 | G12: 454 | H12: -3748 | I12: -7950 | J12: -12152 | K12: -16354 | L12: -20556
A13: 2017-05-04 | B13: tt344 | C13: д | D13: -455 | F13: 4656 | G13: 454 | H13: -3748 | I13: -7950 | J13: -12152 | K13: -16354 | L13: -20556
A14: 2017-05-05 | B14: tt345 | C14: д | D14: -546 | F14: 4656 | G14: 454 | H14: -3748 | I14: -7950 | J14: -12152 | K14: -16354 | L14: -20556
A15: 2017-05-06 | B15: tt346 | C15: д | D15: -637 | F15: 4656 | G15: 454 | H15: -3748 | I15: -7950 | J15: -12152 | K15: -16354 | L15: -20556
A16: 2017-05-07 | B16: tt347 | C16: д | D16: -728 | F16: 4656 | G16: 454 | H16: -3748 | I16: -7950 | J16: -12152 | K16: -16354 | L16: -20556
A17: 2017-05-08 | B17: tt348 | C17: д | D17: -819 | F17: 4656 | G17: 454 | H17: -3748 | I17: -7950 | J17: -12152 | K17: -16354 | L17: -20556
A18: 2017-05-09 | B18: tt349 | C18: д | D18: -910 | F18: 4656 | G18: 454 | H18: -3748 | I18: -7950 | J18: -12152 | K18: -16354 | L18: -20556
A19: 2017-05-10 | B19: tt350 | C19: д | F19: 4656 | G19: 454 | H19: -3748 | I19: -7950 | J19: -12152 | K19: -16354 | L19: -20556
A20: 2017-05-11 | B20: tt351 | C20: д
A21: 2017-05-12 | B21: tt352 | C21: д
A22: 2017-05-13 | B22: tt353 | C22: д
A23: 2017-05-14 | B23: tt354 | C23: д
A24: 2017-05-15 | B24: tt355 | C24: д
A25: 2017-05-16 | B25: tt356 | C25: д
A26: 2017-05-17 | B26: tt357 | C26: д
A27: 2017-05-18 | B27: tt358 | C27: д
A28: 2017-05-19 | B28: tt359 | C28: д

Sheet Лист4
A1: дата | B1: номер | C1: н
A2: 2015-01-01 | B2: tt344 | C2: н | D2: 6
A3: 2015-01-02 | B3: tt345 | C3: н | D3: 6
A4: 2015-01-03 | B4: tt346 | C4: н | D4: 6
A5: 2015-01-04 | B5: tt347 | C5: н | D5: 6
A6: 2015-01-05 | B6: tt348 | C6: н | D6: 6
A7: 2015-01-06 | B7: tt349 | C7: н | D7: 555
A8: 2015-01-07 | B8: tt350 | C8: н | D8: 555
A9: 2015-01-08 | B9: tt351 | C9: н | D9: 555
A10: 2015-01-09 | B10: tt352 | C10: н | D10: 555
A11: 2015-01-10 | B11: tt353 | C11: н | D11: 555
A12: 2015-01-11 | B12: tt354 | C12: н | D12: 555
A13: 2015-01-12 | B13: tt355 | C13: н
A14: 2015-01-13 | B14: tt356 | C14: н
A15: 2015-01-14 | B15: tt357 | C15: н
A16: 2015-01-15 | B16: tt358 | C16: н
A17: 2015-01-16 | B17: tt359 | C17: н
A18: 2015-01-17 | B18: tt360 | C18: н
A19: 2015-01-18 | B19: tt361 | C19: н
A20: 2015-01-19 | B20: tt362 | C20: н
A21: 2015-01-20 | B21: tt363 | C21: н
A22: 2015-01-21 | B22: tt364 | C22: н
A23: 2015-01-22 | B23: tt365 | C23: н
A24: 2015-01-23 | B24: tt366 | C24: н
A25: 2015-01-24 | B25: tt367 | C25: н
A26: 2015-01-25 | B26: tt368 | C26: н
A27: 2015-01-26 | B27: tt369 | C27: н
A28: 2015-01-27 | B28: tt370 | C28: н
A29: 2015-01-28 | B29: tt371 | C29: н
A30: 2015-01-29 | B30: tt372 | C30: н
A31: 2015-01-30 | B31: tt373 | C31: н
A32: 2015-01-31 | B32: tt374 | C32: н
A33: 2015-02-01 | B33: tt375 | C33: н
A34: 2015-02-02 | B34: tt376 | C34: н
A35: 2015-02-03 | B35: tt377 | C35: н
A36: 2015-02-04 | B36: tt378 | C36: н
A37: 2015-02-05 | B37: tt379 | C37: н
A38: 2015-02-06 | B38: tt380 | C38: н
A39: 2015-02-07 | B39: tt381 | C39: н
A40: 2015-02-08 | B40: tt382 | C40: н
A41: 2015-02-09 | B41: tt383 | C41: н
A42: 2015-02-10 | B42: tt384 | C42: н
A43: 2015-02-11 | B43: tt385 | C43: н
A44: 2015-02-12 | B44: tt386 | C44: н
A45: 2015-02-13 | B45: tt387 | C45: н
A46: 2015-02-14 | B46: tt388 | C46: н
A47: 2015-02-15 | B47: tt389 | C47: н
A48: 2015-02-16 | B48: tt390 | C48: н
A49: 2015-02-17 | B49: tt391 | C49: н
A50: 2015-02-18 | B50: tt392 | C50: н
A51: 2015-02-19 | B51: tt393 | C51: н
A52: 2015-02-20 | B52: tt394 | C52: н
A53: 2015-02-21 | B53: tt395 | C53: н
A54: 2015-02-22 | B54: tt396 | C54: н
A55: 2015-02-23 | B55: tt397 | C55: н
A56: 2015-02-24 | B56: tt398 | C56: н
A57: 2015-02-25 | B57: tt399 | C57: н
A58: 2015-02-26 | B58: tt400 | C58: н
A59: 2015-02-27 | B59: tt401 | C59: н
A60: 2015-02-28 | B60: tt402 | C60: н
A61: 2015-03-01 | B61: tt403 | C61: н
A62: 2015-03-02 | B62: tt404 | C62: н
A63: 2015-03-03 | B63: tt405 | C63: н
A64: 2015-03-04 | B64: tt406 | C64: н
A65: 2015-03-05 | B65: tt407 | C65: н
A66: 2015-03-06 | B66: tt408 | C66: н
A67: 2015-03-07 | B67: tt409 | C67: н
A68: 2015-03-08 | B68: tt410 | C68: н
A69: 2015-03-09 | B69: tt411 | C69: н
A70: 2015-03-10 | B70: tt412 | C70: н
A71: 2015-03-11 | B71: tt413 | C71: н
A72: 2015-03-12 | B72: tt414 | C72: н
A73: 2015-03-13 | B73: tt415 | C73: н
A74: 2015-03-14 | B74: tt416 | C74: н
A75: 2015-03-15 | B75: tt417 | C75: н

Sheet сумма
A1: дата | B1: номер | C1: н | D1: объем | E1: результат изменения от последнего значения
